bitfinex-derivatives/quotes_ETHF0:USTF0_20250708
["timestamp","ask_amount","ask_price","bid_price","bid_amount"]
[1751998868468,0.76425,2616.8,2616.7,5.21141025]
[1751998868767,0.76425,2616.8,2616.7,1.7027]
[1751998869367,1.42095,2616.8,2616.7,1.7027]
[1751998869566,0.76428,2616.7,2616.6,3.2078]
[1751998869764,0.76437,2616.4,2616.3,3.2078]
[1751998870168,9.79293453,2616.7,2616.0,3.2078]
[1751998870369,0.76444,2616.2,2616.0,3.2078]
[1751998870663,0.76444,2616.2,2616.1,0.6656]
[1751998871270,0.76444,2616.2,2616.1,0.95873238]
[1751998871460,1.91077,2616.6,2616.1,0.95873238]
[1751998871667,0.76437,2616.4,2616.3,3.2078]
[1751998871867,0.76439,2616.3,2616.2,1.3679]
[1751998872062,0.76439,2616.3,2616.2,6.2784]
[1751998872469,3.2078,2616.7,2616.2,11.2784]
[1751998872666,0.76431,2616.6,2616.5,3.2078]
[1751998873372,3.2078,2617.4,2616.5,13.30158453]
[1751998873574,0.76419,2617.0,2616.9,3.2078]
[1751998873872,0.76419,2617.0,2616.9,5.3111]
[1751998874074,0.76419,2617.0,2616.9,10.3111]
[1751998874675,0.76419,2617.0,2616.9,9.5469]
[1751998874871,0.76419,2617.0,2616.9,12.01382]
[1751998875275,0.76419,2617.0,2616.9,11.54273238]
[1751998875569,0.76419,2617.0,2616.9,6.54273238]
[1751998878471,0.76419,2617.0,2616.9,5.20363238]
[1751998878666,1.42089,2617.0,2616.9,3.50093238]
[1751998878869,1.42089,2617.0,2616.9,2.38e-06]
[1751998879075,1.42089,2617.0,2616.9,0.66560238]
[1751998880173,1.42089,2617.0,2616.9,2.38e-06]
[1751998880375,2.44399,2617.0,2616.9,2.38e-06]
[1751998880579,3.74949,2617.0,2616.9,2.38e-06]
[1751998881872,1.44159,2617.0,2616.9,0.66920238]
[1751998882079,1.44159,2617.0,2616.9,2.38e-06]
[1751998882473,2.77679,2617.0,2616.9,2.38e-06]
[1751998883177,3.81019,2617.0,2616.9,2.38e-06]
[1751998883674,2.77679,2617.0,2616.9,2.38e-06]
[1751998883873,0.76419,2617.0,2616.9,2.38e-06]
[1751998884071,1.44159,2617.0,2616.9,0.66920238]
[1751998884269,0.76419,2617.0,2616.9,4.86270238]
[1751998884476,0.76419,2617.0,2616.9,1.65490238]
[1751998884676,0.76419,2617.0,2616.9,4.86270238]
[1751998885181,0.76419,2617.0,2616.9,6.13800238]
[1751998886081,1.44159,2617.0,2616.9,4.86270238]
[1751998886280,1.44159,2617.0,2616.9,2.38e-06]
[1751998886473,2.47499,2617.0,2616.9,2.38e-06]
[1751998886781,1.44159,2617.0,2616.9,2.38e-06]
[1751998886982,2.81009,2617.0,2616.9,2.38e-06]
[1751998887183,2.81009,2617.0,2616.9,0.66920238]
[1751998888381,2.81009,2617.0,2616.9,2.38e-06]
[1751998888981,8.84349,2617.0,2616.9,2.38e-06]
[1751998889684,35.34649,2617.0,2616.9,2.38e-06]
[1751998890085,38.73757453,2617.0,2616.9,2.38e-06]
[1751998890485,0.76454,2615.8,2615.7,0.8351]
[1751998890678,0.76463,2615.5,2615.4,3.2078]
[1751998890877,0.76463,2615.5,2615.4,3.877]
[1751998891082,0.76463,2615.5,2615.4,4.8627]
[1751998891278,3.2078,2616.1,2615.4,9.8627]
[1751998891482,0.76453,2615.9,2615.7,3.97236]
[1751998891684,0.76427,2616.8,2616.6,0.7643]
[1751998891887,0.76425,2616.8,2616.7,3.9023]
[1751998892089,0.76425,2616.8,2616.7,1.5605]
[1751998892393,1.91036,2617.2,2616.7,5.754]
[1751998892588,3.2078,2617.3,2616.8,0.9857]
[1751998892884,3.9719,2617.3,2617.2,0.6692]
[1751998893585,3.9719,2617.3,2617.2,1.6549]
[1751998894383,0.76424,2616.9,2616.7,5.15649238]
[1751998894588,0.76424,2616.9,2616.8,0.6692]
[1751998894784,0.76422,2616.9,2616.8,0.6692]
[1751998894987,0.76422,2616.9,2616.8,6.6549]
[1751998895186,0.76422,2616.9,2616.8,6.94803238]
[1751998895385,0.76422,2616.9,2616.8,1.94803238]
[1751998896792,1.44162,2616.9,2616.8,0.96233238]
[1751998897094,0.76422,2616.9,2616.8,0.96233238]
[1751998897992,0.76422,2616.9,2616.8,1.94803238]
[1751998898588,0.76422,2616.9,2616.8,0.96233238]
[1751998898887,1.44162,2616.9,2616.8,2.38e-06]
[1751998899085,6.26050956,2616.9,2616.8,2.38e-06]
[1751998899292,3.81932,2616.9,2616.8,2.38e-06]
[1751998899486,2.78592,2616.9,2616.8,0.66920238]
[1751998899690,0.76422,2616.9,2616.8,0.66920238]
[1751998899894,0.76422,2616.9,2616.8,1.65490238]
[1751998902093,0.76421,2617.0,2616.9,0.76418]
[1751998902293,0.76419,2617.1,2617.0,0.76417]
[1751998902490,0.76418,2617.1,2617.0,0.9857]
[1751998902697,0.76418,2617.1,2617.0,7.41908]
[1751998902995,0.76418,2617.1,2617.0,6.6549]
[1751998903195,0.76418,2617.1,2617.0,7.9317]
[1751998903796,0.76418,2617.1,2617.0,2.9317]
[1751998904290,0.76418,2617.1,2617.0,3.69589]
[1751998904898,0.76418,2617.1,2617.0,7.9317]
[1751998905293,0.76418,2617.1,2617.0,7.93170238]
[1751998905599,0.76418,2617.1,2617.0,2.93170238]
[1751998905992,0.76418,2617.1,2617.0,3.69589238]
[1751998906489,0.76418,2617.1,2617.0,2.93170238]
[1751998906892,0.76418,2617.1,2617.0,1.94600238]
[1751998907497,0.76418,2617.1,2617.0,3.69589238]
[1751998907799,0.76413,2617.3,2617.2,0.76409]
[1751998907995,0.76413,2617.3,2617.2,3.877]
[1751998908197,0.76413,2617.3,2617.2,5.62683]
[1751998908395,0.76413,2617.3,2617.2,4.8627]
[1751998908901,0.76413,2617.3,2617.2,6.2417]
[1751998909291,1.44153,2617.3,2617.2,0.6692]
[1751998909495,0.76416,2617.1,2617.0,2.2754788]
[1751998909700,0.76416,2617.1,2617.0,2.9446788]
[1751998910000,1.44156,2617.1,2617.0,2.9446788]
[1751998910201,1.44156,2617.1,2617.0,0.66920238]
[1751998910401,0.76416,2617.1,2617.0,0.66920238]
[1751998910592,0.76416,2617.1,2617.0,1.65490238]
[1751998911203,0.76416,2617.1,2617.0,0.66920238]
[1751998911797,1.45716,2617.1,2617.0,0.66920238]
[1751998912006,0.76416,2617.1,2617.0,2.38e-06]
[1751998912202,1.45716,2617.1,2617.0,0.66180238]
[1751998912404,1.45716,2617.1,2617.0,2.38e-06]
[1751998912901,1.45716,2617.1,2617.0,0.66180238]
[1751998913101,0.76416,2617.1,2617.0,0.66180238]
[1751998913806,0.76416,2617.1,2617.0,2.45129238]
[1751998914105,0.76416,2617.1,2617.0,2.99680238]
[1751998915504,0.76416,2617.1,2617.0,3.76099238]
[1751998915903,0.76416,2617.1,2617.0,2.99680238]
[1751998916105,0.76416,2617.1,2617.0,1.68710238]
[1751998916302,1.45716,2617.1,2617.0,0.66180238]
[1751998918903,1.45716,2617.1,2617.0,2.45129238]
[1751998919104,0.76416,2617.1,2617.0,2.45129238]
[1751998919302,0.76416,2617.1,2617.0,3.73289238]
[1751998919903,0.76416,2617.2,2617.1,0.76411]
[1751998920205,0.76416,2617.2,2617.1,2.45121238]
[1751998921305,0.76416,2617.2,2617.1,2.38e-06]
[1751998921306,1.45716,2617.2,2617.1,2.38e-06]
[1751998921508,1.45716,2617.2,2617.1,2.45126238]
[1751998921703,0.76416,2617.2,2617.1,2.45126238]
[1751998922206,0.76413,2617.3,2617.2,0.76413]
[1751998922407,0.76413,2617.3,2617.2,4.63373]
[1751998922610,0.7641,2617.4,2617.3,0.76408]
[1751998922806,1.4571,2617.4,2617.3,0.6618]
[1751998923004,0.7641,2617.4,2617.3,1.6871]
[1751998923204,0.7641,2617.4,2617.3,2.4512]
[1751998923608,1.4571,2617.4,2617.3,1.6871]
[1751998923911,0.7641,2617.4,2617.3,1.4259]
[1751998924110,0.7641,2617.4,2617.3,2.4512]
[1751998924506,1.4571,2617.4,2617.3,2.4512]
[1751998924800,0.7641,2617.4,2617.3,2.4512]
[1751998925011,1.4571,2617.4,2617.3,1.6871]
[1751998925310,0.7641,2617.4,2617.3,2.45120238]
[1751998925702,0.7641,2617.4,2617.3,1.68710238]
[1751998925902,1.4571,2617.4,2617.3,0.66180238]
[1751998926214,1.4571,2617.4,2617.3,2.38e-06]
[1751998926401,1.4571,2617.4,2617.3,0.66180238]
[1751998926609,2.741,2617.4,2617.3,0.66180238]
[1751998927313,3.7799,2617.4,2617.3,2.38e-06]
[1751998929516,8.7799,2617.4,2617.3,2.38e-06]
[1751998930111,12.19606128,2617.4,2617.3,2.38e-06]
[1751998930311,8.7799,2617.4,2617.3,2.38e-06]
[1751998930507,3.7799,2617.4,2617.3,2.38e-06]
[1751998932214,7.18195848,2617.4,2617.3,2.38e-06]
[1751998932512,15.59811976,2617.4,2617.3,2.38e-06]
[1751998932913,12.18195848,2617.4,2617.3,2.38e-06]
[1751998933113,15.61566763,2617.4,2617.3,2.38e-06]
[1751998936922,10.61566763,2617.4,2617.3,2.38e-06]
[1751998937124,2.741,2617.4,2617.3,0.66180238]
[1751998937322,29.238,2617.4,2617.3,2.38e-06]
[1751998937523,29.238,2617.4,2617.3,0.66180238]
[1751998937919,0.76406,2617.5,2617.4,0.76407]
[1751998938119,0.76407,2617.4,2617.3,1.78938238]
[1751998938320,0.76407,2617.4,2617.3,1.42588238]
[1751998938623,0.764,2617.7,2617.6,0.76399]
[1751998938822,0.76397,2617.8,2617.7,0.76399]
[1751998939022,0.76397,2617.8,2617.7,1.42579]
[1751998939424,3.97174,2617.9,2617.8,0.76396]
[1751998939719,55.04,2618.1,2617.8,0.6618]
[1751998939916,81.536,2618.1,2617.8,1.42575]
[1751998940123,0.7639,2618.0,2617.8,2.45105]
[1751998940424,0.7639,2618.0,2617.9,2.38e-06]
[1751998940624,1.4569,2618.0,2617.9,2.38e-06]
[1751998940923,1.4569,2618.0,2617.9,0.66490238]
[1751998941128,1.4569,2618.0,2617.9,2.38e-06]
[1751998941519,1.4569,2618.0,2617.9,0.66490238]
[1751998942225,1.4541,2618.0,2617.9,0.66490238]
[1751998942425,1.4541,2618.0,2617.9,2.38e-06]
[1751998942625,1.4541,2618.0,2617.9,0.66490238]
[1751998943220,0.7639,2618.0,2617.9,1.64560238]
[1751998943424,0.76388,2618.1,2617.9,2.40950238]
[1751998943620,0.881,2618.3,2618.0,0.76389]
[1751998943928,0.76386,2618.2,2618.1,3.2078]
[1751998944323,2.46856,2618.2,2618.1,0.6649]
[1751998944625,1.7047,2618.2,2617.9,2.38e-06]
[1751998944928,0.7639,2618.0,2617.9,2.38e-06]
[1751998945123,1.4541,2618.0,2617.9,2.38e-06]
[1751998945323,3.7345,2618.0,2617.9,2.38e-06]
[1751998946027,1.4541,2618.0,2617.9,0.66490238]
[1751998948428,2.4686,2618.0,2617.9,0.66490238]
[1751998948627,3.7457,2618.0,2617.9,0.66490238]
[1751998950433,3.7457,2618.0,2617.9,2.38e-06]
[1751998951238,7.14775848,2618.0,2617.9,2.38e-06]
[1751998952034,12.14775848,2618.0,2617.9,2.38e-06]
[1751998952335,8.7457,2618.0,2617.9,2.38e-06]
[1751998957136,3.7457,2618.0,2617.9,2.38e-06]
[1751998959631,30.2327,2618.0,2617.9,2.38e-06]
[1751998961047,35.2327,2618.0,2617.9,2.38e-06]
[1751998961331,30.2327,2618.0,2617.9,2.38e-06]
[1751998965535,33.66640915,2618.0,2617.9,2.38e-06]
[1751998968439,35.2327,2618.0,2617.9,2.38e-06]
[1751998970037,30.2327,2618.0,2617.9,2.38e-06]
[1751998972236,30.2079,2618.0,2617.9,2.38e-06]
[1751998972443,30.2079,2618.0,2617.2,1.831]
[1751998972444,0.7641,2617.3,2617.2,0.8503]
[1751998972643,1.91036,2617.2,2616.8,1.70860178]
[1751998972937,36.68185848,2617.3,2616.8,3.05170178]
[1751998972938,0.76422,2616.9,2616.8,3.05170178]
[1751998973137,0.76422,2616.9,2616.8,8.05170178]
[1751998973338,0.76422,2616.9,2616.8,8.73585]
[1751998973540,0.76422,2616.9,2616.8,7.9716]
[1751998973939,0.76422,2616.9,2616.8,8.8285]
[1751998974244,0.76422,2616.9,2616.8,3.8285]
[1751998975243,1.42962,2616.9,2616.8,3.8285]
[1751998975646,1.42962,2616.9,2616.8,4.12163238]
[1751998977141,1.42962,2616.9,2616.8,3.17123238]
[1751998977345,1.42962,2616.9,2616.8,4.12163238]
[1751998977647,4.63742,2616.9,2616.8,1.15003238]
[1751998977840,4.63742,2616.9,2616.8,1.82813238]
[1751998981643,3.97202,2616.9,2616.8,1.82813238]
[1751998982045,27.25022,2616.9,2616.8,2.47313238]
[1751998982239,27.25022,2616.9,2616.8,4.10163238]
[1751998982843,0.76422,2616.9,2616.8,4.10163238]
[1751998983044,1.91034,2617.2,2616.8,12.30943238]
[1751998983240,0.76422,2616.9,2616.8,7.30943238]
[1751998983552,0.76422,2616.9,2616.8,4.10163238]
[1751998983846,1.42962,2616.9,2616.8,4.10163238]
[1751998985048,0.76422,2616.9,2616.8,2.47313238]
[1751998985244,1.42962,2616.9,2616.8,3.15123238]
[1751998985450,0.76422,2616.9,2616.8,3.15123238]
[1751998985640,1.42962,2616.9,2616.8,3.15123238]
[1751998985948,0.76422,2616.9,2616.8,3.15123238]
[1751998986743,27.25022,2616.9,2616.8,4.10163238]
[1751998988147,0.76422,2616.9,2616.8,4.10163238]
[1751998988344,26.485,2616.9,2616.8,7.30943238]
[1751998988647,27.24922,2616.9,2616.8,13.07368238]
[1751998989047,6.63995205,2617.5,2616.8,12.30943238]
[1751998989247,0.76407,2617.4,2617.3,3.2078]
[1751998989949,5.34215205,2617.7,2617.3,3.2078]
[1751998990154,0.76404,2617.5,2617.4,3.26900238]
[1751998990453,0.76404,2617.5,2617.4,3.94710238]
[1751998990848,1.42934,2617.9,2617.8,0.76396]
[1751998991047,1.42934,2617.9,2617.8,3.97176]
[1751998991748,0.76394,2617.9,2617.8,8.2078]
[1751998992055,0.76394,2617.9,2617.8,9.8363]
[1751998992249,0.76394,2617.9,2617.8,10.60026]
[1751998992452,0.76392,2618.0,2617.9,0.7639]
[1751998992652,0.76392,2618.0,2617.9,0.6781]
[1751998992958,0.76392,2618.0,2617.9,1.6285]
[1751998993452,0.76392,2618.0,2617.9,2.39243]
[1751998993649,26.482,2618.2,2618.0,0.76387]
[1751998993650,0.76388,2618.1,2618.0,0.76387]
[1751998993850,0.76388,2618.1,2618.0,0.76388]
[1751998994050,0.76388,2618.1,2618.0,2.39238]
[1751998994254,0.76385,2618.2,2618.1,0.76385]
[1751998994449,0.76389,2618.1,2618.0,0.76388]
[1751998994651,0.76392,2618.0,2617.9,0.7639]
[1751998994849,0.76388,2618.1,2618.0,0.76387]
[1751998995353,0.7639,2618.0,2617.9,1.44202]
[1751998995750,0.7639,2618.0,2617.9,6.44202]
[1751998995950,0.7639,2618.0,2617.9,5.6781]
[1751998996154,0.7639,2618.0,2617.9,6.44203]
[1751998996358,0.7639,2618.0,2617.9,1.44203]
[1751998996659,0.76389,2618.1,2618.0,0.76388]
[1751998997249,0.76387,2618.1,2618.0,0.76388]
[1751998997455,0.6654,2618.2,2618.1,0.76387]
[1751998997757,0.76384,2618.2,2618.1,5.60015]
[1751998998755,0.76384,2618.2,2618.1,4.8363]
[1751998999852,0.7639,2618.0,2617.9,0.29313238]
[1751999000253,0.7639,2618.0,2617.9,0.97123238]
[1751999001058,2.0141,2618.0,2617.9,0.97123238]
[1751999002259,2.6436,2618.0,2617.9,0.29313238]
[1751999002454,2.6436,2618.0,2617.9,0.98703238]
[1751999003354,2.0141,2618.0,2617.9,0.29313238]
[1751999003660,2.6436,2618.0,2617.9,0.98703238]
[1751999004161,1.3934,2618.0,2617.9,0.98703238]
[1751999005958,2.7127,2618.0,2617.9,0.98703238]
[1751999007363,1.3934,2618.0,2617.9,1.92773238]
[1751999007666,0.7639,2618.0,2617.9,2.69166238]
[1751999008053,1.3934,2618.0,2617.9,2.69166238]
[1751999008261,0.7639,2618.0,2617.9,2.69166238]
[1751999008564,0.7639,2618.0,2617.9,1.92773238]
[1751999008768,1.3934,2618.0,2617.9,0.98703238]
[1751999009753,0.7639,2618.0,2617.9,2.69166238]
[1751999010358,1.3934,2618.0,2617.9,1.92773238]
[1751999010560,1.3934,2618.0,2617.9,0.98703238]
[1751999012758,2.7631,2618.0,2617.9,0.98703238]
[1751999014159,0.6295,2618.0,2617.9,0.98703238]
[1751999014466,0.6295,2618.0,2617.9,3.3858445]
[1751999014863,0.76381,2618.3,2618.2,0.76384]
[1751999015058,0.76381,2618.4,2618.3,0.76378]
[1751999015257,27.85731,2618.4,2618.3,0.6939]
[1751999015464,0.76381,2618.3,2618.2,0.29313238]
[1751999015663,1.39331,2618.3,2618.2,0.29313238]
[1751999015858,1.39331,2618.3,2618.2,0.98703238]
[1751999016866,3.02819212,2618.3,2618.2,0.98703238]
[1751999017062,5.22369212,2618.3,2618.2,0.98703238]
[1751999017268,5.22369212,2618.3,2618.2,0.29313238]
[1751999017666,31.68769212,2618.3,2618.2,0.29313238]
[1751999017871,34.89349212,2618.3,2618.2,0.29313238]
[1751999021171,31.68569212,2618.3,2618.2,0.29313238]
[1751999021676,29.10731,2618.3,2618.2,0.98703238]
[1751999022174,29.10731,2618.3,2618.2,0.29313238]
[1751999022175,30.05081,2618.3,2618.2,0.29313238]
[1751999025383,33.48296205,2618.3,2618.2,0.29313238]
[1751999025582,30.05081,2618.3,2618.2,0.29313238]
[1751999026878,30.05081,2618.3,2618.2,0.98703238]
[1751999026879,33.48549763,2618.3,2618.2,0.98703238]
[1751999027081,33.48549763,2618.3,2618.2,0.29313238]
[1751999027384,33.48549763,2618.3,2618.2,0.98703238]
[1751999028286,30.05081,2618.3,2618.2,0.98703238]
[1751999029480,1.39331,2618.3,2618.2,0.98703238]
[1751999029681,31.28669285,2618.3,2618.2,0.98703238]
[1751999030484,31.28669285,2618.3,2618.2,0.29313238]
[1751999030681,29.17141,2618.3,2618.2,0.29313238]
[1751999030882,27.85131,2618.3,2618.2,0.97613238]
[1751999031982,27.86221,2618.3,2618.2,0.97613238]
[1751999032387,27.86221,2618.3,2618.2,0.29313238]
[1751999032585,27.86221,2618.3,2618.2,0.97613238]
[1751999035488,31.2983166,2618.3,2618.2,0.97613238]
[1751999037086,32.3304166,2618.3,2618.2,0.97613238]
[1751999037289,33.6529166,2618.3,2618.2,0.97613238]
[1751999037482,31.2983166,2618.3,2618.2,0.97613238]
[1751999039892,30.6579166,2618.3,2618.2,0.97613238]
[1751999040086,31.2983166,2618.3,2618.2,0.97613238]
[1751999040486,30.6579166,2618.3,2618.2,0.97613238]
[1751999040688,31.2933166,2618.3,2618.2,0.97613238]
[1751999041792,27.85721,2618.3,2618.2,0.97613238]
[1751999042094,27.21681,2618.3,2618.2,0.29313238]
[1751999042390,27.21681,2618.3,2618.2,0.97613238]
[1751999042893,27.85721,2618.3,2618.2,0.97613238]
[1751999043986,27.21681,2618.3,2618.2,0.97613238]
[1751999044189,27.85721,2618.3,2618.2,0.97613238]
[1751999044394,1.40421,2618.3,2618.2,0.97613238]
[1751999044690,27.85421,2618.3,2618.2,0.97613238]
[1751999045397,32.3224166,2618.3,2618.2,0.29313238]
[1751999046393,32.3224166,2618.3,2618.2,0.97613238]
[1751999046589,31.2903166,2618.3,2618.2,0.97613238]
[1751999047888,30.5265066,2618.3,2618.2,2.75647238]
[1751999048089,27.85421,2618.3,2618.2,0.97613238]
[1751999048393,31.2903166,2618.3,2618.2,0.97613238]
[1751999049792,31.2903166,2618.3,2618.2,1.99263238]
[1751999050595,27.85421,2618.3,2618.2,1.99263238]
[1751999051097,31.2903166,2618.3,2618.2,1.99263238]
[1751999051289,27.85421,2618.3,2618.2,1.99263238]
[1751999052094,3.4361066,2618.4,2618.2,1.99263238]
[1751999052290,0.76378,2618.4,2618.3,1.78031]
[1751999052491,1.40418,2618.4,2618.3,2.46331]
[1751999052686,27.20778,2618.4,2618.3,1.44681]
[1751999053390,27.84818,2618.4,2618.3,1.44681]
[1751999053590,27.0844,2618.4,2618.3,1.44681]
[1751999054086,6.6328766,2618.8,2618.3,6.81682]
[1751999054087,3.4361066,2618.8,2618.3,6.81682]
[1751999054393,27.20572,2618.7,2618.4,3.54988212]
[1751999054584,27.84612,2618.7,2618.6,0.683]
[1751999054790,26.442,2618.7,2618.6,2.46322]
[1751999054990,0.76369,2618.8,2618.7,0.76369]
[1751999055194,4.57043273,2619.3,2618.9,0.76363]
[1751999055497,3.43157858,2619.5,2619.4,0.76349]
[1751999055690,3.43157858,2619.5,2619.4,4.65429]
[1751999055886,4.57043273,2620.0,2619.5,1.90866]
[1751999056095,26.441,2620.0,2619.9,1.44634]
[1751999056290,5.60253273,2620.4,2619.9,1.6995]
[1751999056492,0.76321,2620.4,2620.0,3.54858212]
[1751999056692,1.4036,2620.4,2620.3,0.683]
[1751999056893,27.8396,2620.4,2620.3,0.683]
[1751999057092,55.021,2620.6,2620.3,1.6995]
[1751999057291,0.76304,2621.0,2620.5,3.2078]
[1751999057595,0.76306,2620.9,2620.7,0.7631]
[1751999057794,0.6404,2620.9,2620.8,1.44608]
[1751999058095,0.6404,2620.9,2620.8,4.65388]
[1751999058493,1.40345,2620.9,2620.8,3.8908]
[1751999059095,0.6404,2620.9,2620.8,3.8908]
[1751999059296,1.40345,2620.9,2620.8,3.8908]
[1751999059500,0.6404,2620.9,2620.8,3.8908]
[1751999060200,2.27528212,2620.9,2620.8,4.18393238]
[1751999060396,2.27528212,2620.9,2620.8,3.50093238]
[1751999060601,3.03833212,2620.9,2620.8,0.29313238]
[1751999060795,30.49743212,2620.9,2620.8,0.29313238]
[1751999060999,33.70523212,2620.9,2620.8,0.29313238]
[1751999061300,33.34885,2620.9,2620.8,0.29313238]
[1751999061694,30.14105,2620.9,2620.8,0.97213238]
[1751999062097,28.46855,2620.9,2620.8,0.29313238]
[1751999062295,30.17555,2620.9,2620.8,0.29313238]
[1751999064498,6.47756424,2621.0,2620.8,0.97213238]
[1751999064499,4.84268212,2621.0,2620.8,0.97213238]
[1751999064801,1.43795,2620.9,2620.8,0.97213238]
[1751999064994,0.76305,2620.9,2620.8,0.97213238]
[1751999065401,1.43795,2620.9,2620.8,0.97213238]
[1751999068103,1.43795,2620.9,2620.8,0.29313238]
[1751999068503,1.43795,2620.9,2620.8,0.97213238]
[1751999068898,1.43795,2620.9,2620.8,0.29313238]
[1751999069801,3.2078,2621.9,2620.8,11.8154145]
[1751999070003,26.412,2621.8,2621.5,0.76286]
[1751999070199,26.412,2621.8,2621.3,4.84268212]
[1751999070200,0.7629,2621.5,2621.3,4.2084]
[1751999070394,0.76287,2621.6,2621.4,1.44189]
[1751999070699,0.76288,2621.5,2621.4,2.44249]
[1751999070900,1.43778,2621.5,2621.4,0.679]
[1751999071206,27.84978,2621.5,2621.4,0.679]
[1751999071601,27.84878,2621.5,2621.4,0.679]
[1751999071798,1.43778,2621.5,2621.4,0.679]
[1751999071999,27.84478,2621.5,2621.4,0.679]
[1751999072198,0.76294,2621.3,2621.2,3.2078]
[1751999072400,1.43784,2621.3,2621.2,3.8868]
[1751999072700,0.6749,2621.3,2621.2,0.679]
[1751999072900,0.76303,2621.0,2620.9,4.0468]
[1751999073101,28.0706,2621.0,2620.8,0.29313238]
[1751999073304,1.2861,2620.9,2620.3,4.2084]
[1751999073500,0.76314,2620.7,2620.5,0.76316]
[1751999073702,53.57714,2620.7,2620.6,4.64994]
[1751999073902,0.76314,2620.7,2620.6,4.64994]
[1751999074103,0.76311,2620.7,2620.6,4.64992]
[1751999074299,0.76311,2620.7,2620.6,0.679]
[1751999074505,0.76311,2620.7,2620.6,3.8868]
[1751999075006,0.76311,2620.7,2620.6,0.679]
[1751999075204,0.7632,2620.4,2620.3,4.2084]
[1751999075401,0.7632,2620.4,2620.3,4.8874]
[1751999076102,0.7632,2620.4,2620.3,3.2078]
[1751999076604,0.7632,2620.4,2620.3,3.8868]
[1751999076810,1.4381,2620.4,2620.3,3.8868]
[1751999077303,1.4381,2620.4,2620.3,3.2078]
[1751999077605,1.4381,2620.4,2620.3,0.29313238]
[1751999077806,1.4381,2620.4,2620.3,0.97213238]
[1751999078407,2.6874,2620.4,2620.3,0.97213238]
[1751999079501,30.0801,2620.4,2620.3,0.97213238]
[1751999079705,30.0801,2620.4,2620.3,0.29313238]
[1751999080400,30.0801,2620.4,2619.7,3.2078]
[1751999080401,0.76338,2619.8,2619.7,3.2078]
[1751999080707,0.76338,2619.8,2619.2,0.8229]
[1751999080708,1.90853,2619.7,2619.2,0.8229]
[1751999081008,0.76352,2619.3,2619.2,1.5019]
[1751999081203,26.404,2619.6,2619.3,0.76352]
[1751999081401,0.76348,2619.5,2619.3,0.76352]
[1751999081802,0.76355,2619.2,2619.1,3.2078]
[1751999081998,1.43845,2619.2,2619.1,3.8868]
[1751999082306,1.43845,2619.2,2619.1,4.65036]
[1751999082307,0.6749,2619.2,2619.1,4.65036]
[1751999082807,1.43845,2619.2,2619.1,3.8868]
[1751999083709,1.43845,2619.2,2619.1,0.679]
[1751999083903,0.76367,2618.8,2618.7,0.8229]
[1751999084106,0.6749,2618.8,2618.7,0.679]
[1751999084405,0.76364,2618.9,2618.8,0.76365]
[1751999084608,0.76364,2618.9,2618.8,1.44265]
[1751999084810,54.174,2619.2,2618.8,1.6796]
[1751999085010,0.76359,2619.1,2618.9,3.97141]
[1751999085205,1.43849,2619.1,2619.0,0.679]
[1751999085410,0.6749,2619.1,2618.8,1.76425]
[1751999085602,0.76362,2619.0,2618.9,0.76364]
[1751999085801,0.7636,2619.1,2618.9,0.76364]
[1751999086006,0.76361,2619.0,2618.9,2.44324]
[1751999086202,0.76359,2619.1,2618.9,2.44324]
[1751999086408,3.2078,2619.3,2619.0,1.0006]
[1751999086608,3.2078,2619.6,2619.2,1.44252]
[1751999086804,0.76352,2619.4,2619.2,2.44312]
[1751999087015,0.76352,2619.3,2619.2,2.44312]
[1751999087602,0.76351,2619.4,2619.2,2.44312]
[1751999087808,0.76351,2619.4,2619.3,0.76352]
[1751999088012,4.1965,2619.9,2619.3,1.6796]
[1751999088210,0.76343,2619.6,2619.5,3.97126]
[1751999088514,0.76342,2619.7,2619.5,4.8874]
[1751999088711,0.76343,2619.6,2619.5,4.8874]
[1751999089218,0.76343,2619.7,2619.6,0.76343]
[1751999089413,0.7634,2619.8,2619.6,1.44243]
[1751999089614,0.7634,2619.8,2619.6,2.44303]
[1751999089815,0.8027,2620.0,2619.8,0.76337]
[1751999089816,27.17034,2620.0,2619.8,0.76337]
[1751999090017,27.84524,2620.0,2619.9,0.679]
[1751999090209,1.43824,2620.0,2619.9,0.679]
[1751999090610,1.43824,2620.0,2619.9,1.44235]
[1751999090810,27.17031,2620.1,2619.9,1.44235]
[1751999091011,0.76331,2620.1,2619.9,2.44294]
[1751999091311,27.17028,2620.2,2620.0,0.76332]
[1751999091512,0.76329,2620.1,2620.0,0.76332]
[1751999091816,0.76332,2620.0,2619.9,1.76392]
[1751999092115,0.76332,2620.0,2619.9,0.76332]
[1751999092315,1.42992,2620.0,2619.9,1.42372]
[1751999092711,0.76331,2620.1,2619.9,1.42372]
[1751999092918,0.76331,2620.1,2620.0,0.76332]
[1751999093218,27.17027,2620.2,2620.0,2.3775]
[1751999093911,27.17027,2620.2,2620.1,0.76329]
[1751999094107,27.83687,2620.2,2620.1,0.6604]
[1751999094311,27.83687,2620.2,2620.1,1.01836696]
[1751999094711,1.42987,2620.2,2620.1,1.01836696]
[1751999094911,27.83387,2620.2,2620.1,1.01836696]
[1751999095113,27.47590308,2620.2,2620.1,1.01836696]
[1751999095420,27.04634353,2620.2,2620.1,1.01836696]
[1751999095913,27.71294353,2620.2,2620.1,1.01836696]
[1751999096113,27.04634353,2620.2,2620.1,1.01836696]
[1751999096314,27.71294353,2620.2,2620.1,1.01836696]
[1751999097314,27.04634353,2620.2,2620.1,0.35796696]
[1751999097616,30.03374353,2620.2,2620.1,0.35796696]
[1751999098010,1.9084,2619.9,2619.5,0.9538]
[1751999098214,0.7634,2619.7,2619.6,0.35798161]
[1751999098616,0.7634,2619.7,2619.6,1.01838161]
[1751999099018,0.7634,2619.7,2619.6,0.35798161]
[1751999099315,27.1654,2619.7,2619.6,0.35798161]
[1751999099517,27.9695,2619.7,2619.6,0.35798161]
[1751999100113,27.9695,2619.7,2619.6,1.01838161]
[1751999100309,3.2078,2620.0,2619.6,1.01838161]
[1751999100512,0.7634,2619.7,2619.6,0.6604]